Workbook

Sheet Table 5-3 HighOptic
A1: Inputs - Costs, Capacities, Demands (Table 11.4 for HighOptic)
B2: Demand City Production and Transportation Cost per 1000 Units | H2: Fixed | I2: Capa-
A3: Supply City | B3: Atlanta | C3: Boston | D3: Chicago | E3: Denver | F3: Omaha | G3: Portland | H3: Cost ($) | I3: city
A4: Baltimore | B4: 1675 | C4: 400 | D4: 685 | E4: 1630 | F4: 1160 | G4: 2800 | H4: 7650 | I4: 18
A5: Cheyenne | B5: 1460 | C5: 1940 | D5: 970 | E5: 100 | F5: 495 | G5: 1200 | H5: 3500 | I5: 24
A6: Salt Lake | B6: 1925 | C6: 2400 | D6: 1425 | E6: 500 | F6: 950 | G6: 800 | H6: 5000 | I6: 27
A7: Memphis | B7: 380 | C7: 1355 | D7: 543 | E7: 1045 | F7: 665 | G7: 2321 | H7: 4100 | I7: 22
A8: Wichita | B8: 922 | C8: 1646 | D8: 700 | E8: 508 | F8: 311 | G8: 1797 | H8: 2200 | I8: 31
A9: Demand | B9: 10 | C9: 8 | D9: 14 | E9: 6 | F9: 7 | G9: 11
A11: Decision Variables
B12: Demand City - Production Allocation (1000 Units) | H12: Plants
A13: Supply City | B13: Atlanta | C13: Boston | D13: Chicago | E13: Denver | F13: Omaha | G13: Portland | H13: (1=open)
A14: Baltimore | B14: 0 | C14: 0 | D14: 0 | E14: 0 | F14: 0 | G14: 0
A15: Cheyenne | B15: 0 | C15: 0 | D15: 0 | E15: 6 | F15: 7 | G15: 0 | H15: 1
A16: Salt Lake | B16: 0 | C16: 0 | D16: 0 | E16: 0 | F16: 0 | G16: 11 | H16: 1
A17: Memphis | B17: 0 | C17: 0 | D17: 0 | E17: 0 | F17: 0 | G17: 0
A18: Wichita | B18: 0 | C18: 0 | D18: 0 | E18: 0 | F18: 0 | G18: 0
A20: Constraints
A21: Supply City | B21: Excess Capacity
A22: Baltimore | B22: =I4-SUM(B14:G14) -> 18
A23: Cheyenne | B23: =I5-SUM(B15:G15) -> 11
A24: Salt Lake | B24: =I6-SUM(B16:G16) -> 16
A25: Memphis | B25: =I7-SUM(B17:G17) -> 22
A26: Wichita | B26: =I8-SUM(B18:G18) -> 31
B28: Atlanta | C28: Boston | D28: Chicago | E28: Denver | F28: Omaha | G28: Portland
A29: Unmet Demand | B29: =B9-SUM(B14:B18) -> 10 | C29: 8 | D29: 14 | E29: 0 | F29: 0 | G29: 0
A31: Objective Function
A32: Cost = | B32: =SUMPRODUCT(E15:G16,E5:G6)+SUMPRODUCT(I5:I6,H15:H16)+SUMPRODUCT(H15:H16,H5:H6) -> 21416

Sheet Table 5-3 TelecomOne
A1: Inputs - Costs, Capacities, Demands (Table 11.4 for TelecomOne)
B2: Demand City Production and Transportation Cost per 1000 Units | H2: Fixed | I2: Capa-
A3: Supply City | B3: Atlanta | C3: Boston | D3: Chicago | E3: Denver | F3: Omaha | G3: Portland | H3: Cost ($) | I3: city
A4: Baltimore | B4: 1675 | C4: 400 | D4: 685 | E4: 1630 | F4: 1160 | G4: 2800 | H4: 7650 | I4: 18
A5: Cheyenne | B5: 1460 | C5: 1940 | D5: 970 | E5: 100 | F5: 495 | G5: 1200 | H5: 3500 | I5: 24
A6: Salt Lake | B6: 1925 | C6: 2400 | D6: 1425 | E6: 500 | F6: 950 | G6: 800 | H6: 5000 | I6: 27
A7: Memphis | B7: 380 | C7: 1355 | D7: 543 | E7: 1045 | F7: 665 | G7: 2321 | H7: 4100 | I7: 22
A8: Wichita | B8: 922 | C8: 1646 | D8: 700 | E8: 508 | F8: 311 | G8: 1797 | H8: 2200 | I8: 31
A9: Demand | B9: 10 | C9: 8 | D9: 14 | E9: 6 | F9: 7 | G9: 11
A11: Decision Variables
B12: Demand City - Production Allocation (1000 Units) | H12: Plants
A13: Supply City | B13: Atlanta | C13: Boston | D13: Chicago | E13: Denver | F13: Omaha | G13: Portland | H13: (1=open)
A14: Baltimore | B14: 0 | C14: 8 | D14: 2 | E14: 0 | F14: 0 | G14: 0 | H14: 1
A15: Cheyenne | B15: 0 | C15: 0 | D15: 0 | E15: 0 | F15: 0 | G15: 0 | H15: 0
A16: Salt Lake | B16: 0 | C16: 0 | D16: 0 | E16: 0 | F16: 0 | G16: 0 | H16: 0
A17: Memphis | B17: 10 | C17: 0 | D17: 12 | E17: 0 | F17: 0 | G17: 0 | H17: 1
A18: Wichita | B18: 0 | C18: 0 | D18: 0 | E18: 0 | F18: 0 | G18: 0 | H18: 1
A20: Constraints
A21: Supply City | B21: Excess Capacity
A22: Baltimore | B22: =I4-SUM(B14:G14) -> 8
A23: Cheyenne | B23: =I5-SUM(B15:G15) -> 24
A24: Salt Lake | B24: =I6-SUM(B16:G16) -> 27
A25: Memphis | B25: =I7-SUM(B17:G17) -> 0
A26: Wichita | B26: =I8-SUM(B18:G18) -> 31
B28: Atlanta | C28: Boston | D28: Chicago | E28: Denver | F28: Omaha | G28: Portland
A29: Unmet Demand | B29: =B9-SUM(B14:B18) -> 0 | C29: 0 | D29: 0 | E29: 6 | F29: 7 | G29: 11
A31: Objective Function
A32: Cost = | B32: =SUMPRODUCT(B14:D14,B4:D4)+SUMPRODUCT(B7:D8,B17:D18)+H14*H4+SUMPRODUCT(H7:H8,H17:H18) -> 28836

Sheet Merged Network with All Plants
A1: Inputs - Costs, Capacities, Demands (for TelecomOptic)
B2: Demand City Production and Transportation Cost per 1000 Units | H2: Fixed | I2: Capa-
A3: Supply City | B3: Atlanta | C3: Boston | D3: Chicago | E3: Denver | F3: Omaha | G3: Portland | H3: Cost ($) | I3: city
A4: Baltimore | B4: 1675 | C4: 400 | D4: 685 | E4: 1630 | F4: 1160 | G4: 2800 | H4: 7650 | I4: 18
A5: Cheyenne | B5: 1460 | C5: 1940 | D5: 970 | E5: 100 | F5: 495 | G5: 1200 | H5: 3500 | I5: 24
A6: Salt Lake | B6: 1925 | C6: 2400 | D6: 1425 | E6: 500 | F6: 950 | G6: 800 | H6: 5000 | I6: 27
A7: Memphis | B7: 380 | C7: 1355 | D7: 543 | E7: 1045 | F7: 665 | G7: 2321 | H7: 4100 | I7: 22
A8: Wichita | B8: 922 | C8: 1646 | D8: 700 | E8: 508 | F8: 311 | G8: 1797 | H8: 2200 | I8: 31
A9: Demand | B9: 10 | C9: 8 | D9: 14 | E9: 6 | F9: 7 | G9: 11
A11: Decision Variables
B12: Demand City - Production Allocation (1000 Units) | H12: Plants
A13: Supply City | B13: Atlanta | C13: Boston | D13: Chicago | E13: Denver | F13: Omaha | G13: Portland | H13: (1=open)
A14: Baltimore | B14: 0 | C14: 8 | D14: 2 | E14: 0 | F14: 0 | G14: 0 | H14: 1
A15: Cheyenne | B15: 0 | C15: 0 | D15: 0 | E15: 6 | F15: 0 | G15: 0 | H15: 1
A16: Salt Lake | B16: 0 | C16: 0 | D16: 0 | E16: 0 | F16: 0 | G16: 11 | H16: 1
A17: Memphis | B17: 10 | C17: 0 | D17: 12 | E17: 0 | F17: 0 | G17: 0 | H17: 1
A18: Wichita | B18: 0 | C18: 0 | D18: 0 | E18: 0 | F18: 7 | G18: 0 | H18: 1
A20: Constraints
A21: Supply City | B21: Excess Capacity
A22: Baltimore | B22: =I4*H14-SUM(B14:G14) -> 8 | D22: Total Available Capacity | G22: =SUMPRODUCT(I4:I8,H14:H18) -> 122
A23: Cheyenne | B23: =I5*H15-SUM(B15:G15) -> 18
A24: Salt Lake | B24: =I6*H16-SUM(B16:G16) -> 16
A25: Memphis | B25: =I7*H17-SUM(B17:G17) -> -5.127276381e-11
A26: Wichita | B26: =I8*H18-SUM(B18:G18) -> 24
B28: Atlanta | C28: Boston | D28: Chicago | E28: Denver | F28: Omaha | G28: Portland
A29: Unmet Demand | B29: =B9-SUM(B14:B18) -> -2.330580173e-11 | C29: -3.02863512e-10 | D29: -3.262812243e-11 | E29: -2.271480781e-10 | F29: -2.650057951e-10 | G29: -2.563638191e-11
A31: Objective Function
A32: Cost = | B32: =SUMPRODUCT(B14:G18,B4:G8)+SUMPRODUCT(H14:H18,H4:H8) -> 48913

Sheet Figure 5-12
A1: Inputs - Costs, Capacities, Demands (for TelecomOptic)
B2: Demand City Production and Transportation Cost per 1000 Units | H2: Fixed | I2: Capa-
A3: Supply City | B3: Atlanta | C3: Boston | D3: Chicago | E3: Denver | F3: Omaha | G3: Portland | H3: Cost ($) | I3: city
A4: Baltimore | B4: 1675 | C4: 400 | D4: 685 | E4: 1630 | F4: 1160 | G4: 2800 | H4: 7650 | I4: 18
A5: Cheyenne | B5: 1460 | C5: 1940 | D5: 970 | E5: 100 | F5: 495 | G5: 1200 | H5: 3500 | I5: 24
A6: Salt Lake | B6: 1925 | C6: 2400 | D6: 1425 | E6: 500 | F6: 950 | G6: 800 | H6: 5000 | I6: 27
A7: Memphis | B7: 380 | C7: 1355 | D7: 543 | E7: 1045 | F7: 665 | G7: 2321 | H7: 4100 | I7: 22
A8: Wichita | B8: 922 | C8: 1646 | D8: 700 | E8: 508 | F8: 311 | G8: 1797 | H8: 2200 | I8: 31
A9: Demand | B9: 10 | C9: 8 | D9: 14 | E9: 6 | F9: 7 | G9: 11
A11: Decision Variables
B12: Demand City - Production Allocation (1000 Units) | H12: Plants
A13: Supply City | B13: Atlanta | C13: Boston | D13: Chicago | E13: Denver | F13: Omaha | G13: Portland | H13: (1=open)
A14: Baltimore | B14: 0 | C14: 8 | D14: 2.000000002 | E14: 0 | F14: 0 | G14: 0 | H14: 1
A15: Cheyenne | B15: 0 | C15: 0 | D15: 0 | E15: 6 | F15: 6.999999999 | G15: 11 | H15: 1
A16: Salt Lake | B16: 0 | C16: 0 | D16: 0 | E16: 0 | F16: 0 | G16: 0 | H16: 0
A17: Memphis | B17: 10 | C17: 0 | D17: 12 | E17: 0 | F17: 9.085923125e-10 | G17: 0 | H17: 1
A18: Wichita | B18: 0 | C18: 0 | D18: 0 | E18: 0 | F18: 0 | G18: 0 | H18: 0
A20: Constraints
A21: Supply City | B21: Excess Capacity
A22: Baltimore | B22: =I4*H14-SUM(B14:G14) -> 7.999999998
A23: Cheyenne | B23: =I5*H15-SUM(B15:G15) -> 0
A24: Salt Lake | B24: =I6*H16-SUM(B16:G16) -> 0
A25: Memphis | B25: =I7*H17-SUM(B17:G17) -> 0
A26: Wichita | B26: =I8*H18-SUM(B18:G18) -> 0
B28: Atlanta | C28: Boston | D28: Chicago | E28: Denver | F28: Omaha | G28: Portland
A29: Unmet Demand | B29: =B9-SUM(B14:B18) -> -3.78578946e-10 | C29: -3.02863512e-10 | D29: -5.300098138e-10 | E29: -2.271471899e-10 | F29: -2.650057951e-10 | G29: -4.164366629e-10
A31: Objective Function
A32: Cost = | B32: =SUMPRODUCT(B14:G18,B4:G8)+SUMPRODUCT(H14:H18,H4:H8) -> 47401

Sheet Table 5-4 Single Sourcing
A1: Inputs - Costs, Capacities, Demands (Table 11.4 for TelecomOptic)
B2: Demand City Production and Transportation Cost per 1000 Units | H2: Fixed | I2: Capa-
A3: Supply City | B3: Atlanta | C3: Boston | D3: Chicago | E3: Denver | F3: Omaha | G3: Portland | H3: Cost ($) | I3: city
A4: Baltimore | B4: 1675 | C4: 400 | D4: 685 | E4: 1630 | F4: 1160 | G4: 2800 | H4: 7650 | I4: 18
A5: Cheyenne | B5: 1460 | C5: 1940 | D5: 970 | E5: 100 | F5: 495 | G5: 1200 | H5: 3500 | I5: 24
A6: Salt Lake | B6: 1925 | C6: 2400 | D6: 1425 | E6: 500 | F6: 950 | G6: 800 | H6: 5000 | I6: 27
A7: Memphis | B7: 380 | C7: 1355 | D7: 543 | E7: 1045 | F7: 665 | G7: 2321 | H7: 4100 | I7: 22
A8: Wichita | B8: 922 | C8: 1646 | D8: 700 | E8: 508 | F8: 311 | G8: 1797 | H8: 2200 | I8: 31
A9: Demand | B9: 10 | C9: 8 | D9: 14 | E9: 6 | F9: 7 | G9: 11
A11: Decision Variables
B12: Demand City Supplied (1 indicates Cities Supplied) | H12: Plants
A13: Supply City | B13: Atlanta | C13: Boston | D13: Chicago | E13: Denver | F13: Omaha | G13: Portland | H13: (1=open)
A14: Baltimore | B14: 0 | C14: 0 | D14: 0 | E14: 0 | F14: 0 | G14: 0 | H14: 0
A15: Cheyenne | B15: 0 | C15: 0 | D15: 0 | E15: 0 | F15: 0 | G15: 0 | H15: 0
A16: Salt Lake | B16: 0 | C16: 0 | D16: 0 | E16: 1 | F16: 0 | G16: 1 | H16: 1
A17: Memphis | B17: 1 | C17: 1 | D17: 0 | E17: 0 | F17: 0 | G17: 0 | H17: 1
A18: Wichita | B18: 0 | C18: 0 | D18: 1 | E18: 0 | F18: 1 | G18: -1.110223025e-16 | H18: 1
A20: Resulting Production Allocation
B21: Demand City - Production Allocation (1000 Units)
A22: Supply City | B22: Atlanta | C22: Boston | D22: Chicago | E22: Denver | F22: Omaha | G22: Portland
A23: Baltimore | B23: =B14*B$9 -> 0 | C23: 0 | D23: 0 | E23: 0 | F23: 0 | G23: 0
A24: Cheyenne | B24: 0 | C24: 0 | D24: 0 | E24: 0 | F24: 0 | G24: 0
A25: Salt Lake | B25: 0 | C25: 0 | D25: 0 | E25: 6 | F25: 0 | G25: 11
A26: Memphis | B26: =B17*B$9 -> 10 | C26: 8 | D26: 0 | E26: 0 | F26: 0 | G26: 0
A27: Wichita | B27: 0 | C27: 0 | D27: 14 | E27: 0 | F27: 7 | G27: -1.221245327e-15
A29: Constraints
A30: Supply City | B30: Excess Capacity
A31: Baltimore | B31: =I4*H14-SUMPRODUCT(B14:G14,$B$9:$G$9) -> 0
A32: Cheyenne | B32: =I5*H15-SUMPRODUCT(B15:G15,$B$9:$G$9) -> 0
A33: Salt Lake | B33: =I6*H16-SUMPRODUCT(B16:G16,$B$9:$G$9) -> 10
A34: Memphis | B34: =I7*H17-SUMPRODUCT(B17:G17,$B$9:$G$9) -> 4
A35: Wichita | B35: =I8*H18-SUMPRODUCT(B18:G18,$B$9:$G$9) -> 10
B37: Atlanta | C37: Boston | D37: Chicago | E37: Denver | F37: Omaha | G37: Portland
A38: Demand | B38: =SUM(B14:B18) -> 1 | C38: 1 | D38: 1 | E38: 1 | F38: 1 | G38: 1
A40: Objective Function
A41: Cost = | B41: =SUMPRODUCT(B23:G27,B4:G8)+SUMPRODUCT(H14:H18,H4:H8) -> 49717
